[Event "1er Tournoi de GM du Barreau de Paris"]
[Site "Paris, France"]
[Date "2019.12.20"]
[Round "8.5"]
[White "MOUHAMAD, Joachim"]
[Black "LOISEAU, Quentin"]
[Result "1/2-1/2"]
[TimeControl "1h30 + 30s/cp"]
[WhiteTitle "FM"]
[BlackTitle "IM"]
[WhiteElo "2293"]
[BlackElo "2470"]

1. e4 {[%clk 00:56:13]} {[%emt 00:34:47]} e5 {[%clk 01:28:05]} {[%emt
00:02:56]} 2. Nf3 {[%clk 00:56:33]} {[%emt 00:00:10]} Nc6 {[%clk 01:28:31]}
{[%emt 00:00:03]} 3. Nc3 {[%clk 00:55:51]} {[%emt 00:01:12]} Nf6 {[%clk
01:26:04]} {[%emt 00:02:57]} 4. d4 {[%clk 00:56:19]} {[%emt 00:00:02]} Bb4
{[%clk 01:26:02]} {[%emt 00:00:31]} 5. d5 {[%clk 00:51:15]} {[%emt 00:05:34]}
Nb8 {[%clk 01:26:01]} {[%emt 00:00:31]} 6. Bd2 {[%clk 00:50:41]} {[%emt
00:01:04]} d6 {[%clk 01:26:01]} {[%emt 00:00:29]} 7. Bd3 {[%clk 00:50:34]}
{[%emt 00:00:37]} Nbd7 {[%clk 01:23:30]} {[%emt 00:03:01]} 8. Qe2 {[%clk
00:49:53]} {[%emt 00:01:12]} Nc5 {[%clk 01:20:51]} {[%emt 00:03:08]} 9. a3
{[%clk 00:49:54]} {[%emt 00:00:31]} Bxc3 {[%clk 01:20:56]} {[%emt 00:00:24]} 10.
Bxc3 {[%clk 00:50:17]} {[%emt 00:00:07]} O-O {[%clk 01:16:18]} {[%emt
00:05:07]} 11. b4 {[%clk 00:50:14]} {[%emt 00:00:33]} Nxd3+ {[%clk 01:15:17]}
{[%emt 00:01:31]} 12. cxd3 {[%clk 00:50:41]} {[%emt 00:00:02]} Nh5 {[%clk
01:15:25]} {[%emt 00:00:22]} 13. Bd2 {[%clk 00:47:34]} {[%emt 00:03:38]} Qf6
{[%clk 01:11:41]} {[%emt 00:04:13]} 14. Rc1 {[%clk 00:46:55]} {[%emt 00:01:09]}
Bg4 {[%clk 01:06:21]} {[%emt 00:05:51]} 15. h3 {[%clk 00:43:19]} {[%emt
00:04:06]} Bxf3 {[%clk 01:06:30]} {[%emt 00:00:21]} 16. Qxf3 {[%clk 00:43:34]}
{[%emt 00:00:15]} Qxf3 {[%clk 01:06:49]} {[%emt 00:00:11]} 17. gxf3 {[%clk
00:44:03]} {[%emt 00:00:02]} Rfc8 {[%clk 01:06:13]} {[%emt 00:01:06]} 18. Ke2
{[%clk 00:43:02]} {[%emt 00:01:31]} Kf8 {[%clk 01:05:53]} {[%emt 00:00:49]} 19.
Rhg1 {[%clk 00:39:35]} {[%emt 00:03:57]} g6 {[%clk 01:02:59]} {[%emt 00:03:24]}
20. Rc4 {[%clk 00:33:40]} {[%emt 00:06:26]} Ke7 {[%clk 01:02:18]} {[%emt
00:01:11]} 21. Rgc1 {[%clk 00:34:08]} {[%emt 00:00:02]} Kd7 {[%clk 01:02:39]}
{[%emt 00:00:09]} 22. f4 {[%clk 00:22:17]} {[%emt 00:12:21]} Nxf4+ {[%clk
00:58:38]} {[%emt 00:04:31]} 23. Bxf4 {[%clk 00:22:38]} {[%emt 00:00:09]} exf4
{[%clk 00:59:05]} {[%emt 00:00:03]} 24. Kf3 {[%clk 00:22:55]} {[%emt 00:00:13]}
b5 {[%clk 00:59:25]} {[%emt 00:00:10]} 25. Rc6 {[%clk 00:21:37]} {[%emt
00:01:48]} a5 {[%clk 00:59:45]} {[%emt 00:00:10]} 26. bxa5 {[%clk 00:21:26]}
{[%emt 00:00:42]} Rxa5 {[%clk 01:00:01]} {[%emt 00:00:13]} 27. R1c3 {[%clk
00:21:48]} {[%emt 00:00:08]} f6 {[%clk 00:39:12]} {[%emt 00:21:18]} 28. Kxf4
{[%clk 00:22:01]} {[%emt 00:00:17]} Ra7 {[%clk 00:38:39]} {[%emt 00:01:04]} 29.
Ke3 {[%clk 00:17:42]} {[%emt 00:04:49]} Rb8 {[%clk 00:38:21]} {[%emt 00:00:48]}
30. Rb3 {[%clk 00:13:20]} {[%emt 00:04:52]} Ra5 {[%clk 00:35:32]} {[%emt
00:03:19]} 31. h4 {[%clk 00:11:46]} {[%emt 00:02:05]} Rba8 {[%clk 00:32:30]}
{[%emt 00:03:32]} 32. Rcc3 {[%clk 00:08:16]} {[%emt 00:03:59]} R8a7 {[%clk
00:32:11]} {[%emt 00:00:49]} 33. Rc1 {[%clk 00:07:23]} {[%emt 00:01:23]} Rxa3
{[%clk 00:31:29]} {[%emt 00:01:13]} 34. Rxb5 {[%clk 00:07:49]} {[%emt
00:00:05]} Ra1 {[%clk 00:31:53]} {[%emt 00:00:04]} 35. Rbb1 {[%clk 00:06:11]}
{[%emt 00:02:08]} Rxb1 {[%clk 00:31:57]} {[%emt 00:00:27]} 36. Rxb1 {[%clk
00:06:39]} {[%emt 00:00:02]} Ra8 {[%clk 00:32:15]} {[%emt 00:00:11]} 37. h5
{[%clk 00:06:23]} {[%emt 00:00:46]} Rg8 {[%clk 00:30:15]} {[%emt 00:02:29]} 38.
hxg6 {[%clk 00:06:03]} {[%emt 00:00:51]} hxg6 {[%clk 00:30:44]} {[%emt
00:00:01]} 39. Rh1 {[%clk 00:06:26]} {[%emt 00:00:07]} Rg7 {[%clk 00:29:46]}
{[%emt 00:01:28]} 40. d4 {[%clk 00:05:36]} {[%emt 00:01:20]} Re7 {[%clk
00:28:10]} {[%emt 00:02:05]} 41. Rh6 {[%clk 00:04:55]} {[%emt 00:01:12]} Rg7
{[%clk 00:27:02]} {[%emt 00:01:38]} 42. Rh8 {[%clk 00:05:17]} {[%emt 00:00:08]}
Ke7 {[%clk 00:26:03]} {[%emt 00:01:29]} 43. Kf4 {[%clk 00:05:12]} {[%emt
00:00:36]} Kd7 {[%clk 00:26:10]} {[%emt 00:00:23]} 44. f3 {[%clk 00:05:02]}
{[%emt 00:00:39]} Ke7 {[%clk 00:26:01]} {[%emt 00:00:39]} 45. Ke3 {[%clk
00:04:32]} {[%emt 00:01:01]} Kd7 {[%clk 00:26:09]} {[%emt 00:00:22]} 46. Kf2
{[%clk 00:04:50]} {[%emt 00:00:11]} Ke7 {[%clk 00:25:46]} {[%emt 00:00:53]} 47.
Kg3 {[%clk 00:05:12]} {[%emt 00:00:08]} Kd7 {[%clk 00:26:12]} {[%emt 00:00:04]}
48. f4 {[%clk 00:05:19]} {[%emt 00:00:23]} Re7 {[%clk 00:25:06]} {[%emt
00:01:35]} 49. Kf3 {[%clk 00:05:33]} {[%emt 00:00:16]} Rf7 {[%clk 00:16:38]}
{[%emt 00:08:58]} 50. Rg8 {[%clk 00:05:32]} {[%emt 00:00:31]} g5 {[%clk
00:16:15]} {[%emt 00:00:53]} 51. Kg4 {[%clk 00:03:08]} {[%emt 00:02:55]} gxf4
{[%clk 00:16:37]} {[%emt 00:00:08]} 52. Kxf4 {[%clk 00:03:04]} {[%emt
00:00:34]} c6 {[%clk 00:11:47]} {[%emt 00:05:20]} 53. dxc6+ {[%clk 00:03:27]}
{[%emt 00:00:07]} Kxc6 {[%clk 00:12:16]} 54. Kf5 {[%clk 00:02:34]} {[%emt
00:01:23]} Kd7 {[%clk 00:11:08]} {[%emt 00:01:38]} 55. Ra8 {[%clk 00:01:05]}
{[%emt 00:01:59]} d5 {[%clk 00:11:22]} {[%emt 00:00:16]} 56. Ra7+ {[%clk
00:00:48]} {[%emt 00:00:47]} Ke8 {[%clk 00:11:51]} {[%emt 00:00:02]} 57. Ra8+
{[%clk 00:00:53]} {[%emt 00:00:25]} Kd7 {[%clk 00:12:19]} {[%emt 00:00:02]} 58.
exd5 {[%clk 00:00:34]} {[%emt 00:00:49]} Kd6 {[%clk 00:12:38]} {[%emt
00:00:10]} 59. Ra6+ {[%clk 00:00:34]} {[%emt 00:00:30]} Kxd5 {[%clk 00:13:02]}
{[%emt 00:00:06]} 60. Rxf6 {[%clk 00:01:01]} {[%emt 00:00:03]} Rxf6 {[%clk
00:13:28]} {[%emt 00:00:05]} 61. Kxf6 {[%clk 00:01:28]} {[%emt 00:00:03]} Kxd4
{[%emt 00:00:03]} 1/2-1/2


[ePGN "0.1;DGT LiveChess/2.2.5"]

[Event "1er Tournoi de GM du Barreau de Paris"]
[Site "Paris, France"]
[Date "2019.12.20"]
[Round "9.1"]
[White "FEDORCHUK, Sergey"]
[Black "DI NICOLANTONIO, Lucas"]
[Result "1/2-1/2"]
[TimeControl "1h30 + 30s/cp"]
[WhiteTitle "GM"]
[BlackTitle "IM"]
[WhiteElo "2636"]
[BlackElo "2408"]

1. e4 {[%clk 01:30:54]} {[%emt 00:00:04]} c5 {[%clk 01:30:54]} {[%emt
00:00:07]} 2. Nf3 {[%clk 01:31:11]} {[%emt 00:00:13]} d6 {[%clk 01:31:12]}
{[%emt 00:00:11]} 3. d4 {[%clk 01:31:13]} {[%emt 00:00:28]} cxd4 {[%clk
01:31:34]} {[%emt 00:00:09]} 4. Nxd4 {[%clk 01:31:26]} {[%emt 00:00:17]} Nf6
{[%clk 01:31:52]} {[%emt 00:00:11]} 5. Nc3 {[%clk 01:31:30]} {[%emt 00:00:26]}
a6 {[%clk 01:32:16]} {[%emt 00:00:07]} 6. Be2 {[%clk 01:31:04]} {[%emt
00:00:56]} e5 {[%clk 01:32:06]} {[%emt 00:00:40]} 7. Nf3 {[%clk 01:31:10]}
{[%emt 00:00:23]} Be7 {[%clk 01:31:32]} {[%emt 00:01:04]} 8. Bg5 {[%clk
01:30:23]} {[%emt 00:01:17]} Be6 {[%clk 01:31:06]} {[%emt 00:00:56]} 9. Bxf6
{[%clk 01:30:24]} {[%emt 00:00:30]} Bxf6 {[%clk 01:31:27]} {[%emt 00:00:09]} 10.
Nd5 {[%clk 01:30:45]} {[%emt 00:00:09]} Nd7 {[%clk 01:30:58]} {[%emt 00:00:58]}
11. Bc4 {[%clk 01:26:58]} {[%emt 00:04:17]} Rc8 {[%clk 01:29:35]} {[%emt
00:01:53]} 12. Qe2 {[%clk 01:25:44]} {[%emt 00:01:45]} Nb6 {[%clk 01:29:04]}
{[%emt 00:01:00]} 13. Nxb6 {[%clk 01:20:51]} {[%emt 00:05:23]} 1/2-1/2

[Event "1er Tournoi de GM du Barreau de Paris"]
[Site "Paris, France"]
[Date "2019.12.20"]
[Round "9.3"]
[White "LOISEAU, Quentin"]
[Black "LAMARD, Guillaume"]
[Result "1/2-1/2"]
[TimeControl "1h30 + 30s/cp"]
[WhiteTitle "IM"]
[BlackTitle "FM"]
[WhiteElo "2470"]
[BlackElo "2452"]

1. Nf3 {[%clk 01:30:55]} {[%emt 00:00:04]} Nf6 {[%clk 01:30:55]} {[%emt
00:00:06]} 2. c4 {[%clk 01:31:16]} {[%emt 00:00:09]} g6 {[%clk 01:31:22]}
{[%emt 00:00:03]} 3. Nc3 {[%clk 01:31:39]} {[%emt 00:00:06]} Bg7 {[%clk
01:31:49]} {[%emt 00:00:04]} 4. e4 {[%clk 01:31:54]} {[%emt 00:00:14]} d6
{[%clk 01:32:16]} {[%emt 00:00:04]} 5. d4 {[%clk 01:32:18]} {[%emt 00:00:05]}
O-O {[%clk 01:32:42]} {[%emt 00:00:04]} 6. Be2 {[%clk 01:30:12]} {[%emt
00:02:37]} Nbd7 {[%clk 01:32:51]} {[%emt 00:00:22]} 7. O-O {[%clk 01:29:20]}
{[%emt 00:01:21]} e5 {[%clk 01:33:15]} {[%emt 00:00:07]} 8. Be3 {[%clk
01:29:25]} {[%emt 00:00:25]} Re8 {[%clk 01:33:39]} {[%emt 00:00:07]} 9. d5
{[%clk 01:27:49]} {[%emt 00:02:05]} Ng4 {[%clk 01:34:02]} {[%emt 00:00:06]} 10.
Bg5 {[%clk 01:27:33]} {[%emt 00:00:46]} f6 {[%clk 01:34:29]} {[%emt 00:00:04]}
11. Bd2 {[%clk 01:26:57]} {[%emt 00:01:05]} Nh6 {[%clk 01:33:00]} {[%emt
00:01:59]} 12. Qc1 {[%clk 01:22:12]} {[%emt 00:05:15]} Nf7 {[%clk 01:32:55]}
{[%emt 00:00:36]} 13. Ne1 {[%clk 01:22:11]} {[%emt 00:00:30]} f5 {[%clk
01:26:33]} {[%emt 00:06:54]} 14. Nd3 {[%clk 01:14:16]} {[%emt 00:08:24]} Nf6
{[%clk 01:26:47]} {[%emt 00:00:16]} 15. f3 {[%clk 01:12:43]} {[%emt 00:02:03]}
c5 {[%clk 01:21:12]} {[%emt 00:06:06]} 16. Rb1 {[%clk 01:05:51]} {[%emt
00:07:22]} a5 {[%clk 01:18:37]} {[%emt 00:03:05]} 17. Bd1 {[%clk 01:02:33]}
{[%emt 00:03:48]} Bd7 {[%clk 01:12:41]} {[%emt 00:06:27]} 18. Nf2 {[%clk
01:00:57]} {[%emt 00:02:05]} Rf8 {[%clk 01:02:56]} {[%emt 00:10:16]} 19. Ba4
{[%clk 00:57:06]} {[%emt 00:04:20]} Bc8 {[%clk 01:03:00]} {[%emt 00:00:26]} 20.
exf5 {[%clk 00:56:55]} {[%emt 00:00:41]} gxf5 {[%clk 01:02:28]} {[%emt
00:01:03]} 21. f4 {[%clk 00:55:22]} {[%emt 00:02:02]} exf4 {[%clk 00:55:03]}
{[%emt 00:07:56]} 22. Bxf4 {[%clk 00:52:29]} {[%emt 00:03:23]} Nh5 {[%clk
00:54:18]} {[%emt 00:01:15]} 23. Nh3 {[%clk 00:48:33]} {[%emt 00:04:26]} Kh8
{[%clk 00:43:00]} {[%emt 00:11:48]} 24. Ne2 {[%clk 00:46:42]} {[%emt 00:02:21]}
Qe7 {[%clk 00:38:49]} {[%emt 00:04:41]} 25. Qc2 {[%clk 00:43:30]} {[%emt
00:03:41]} Ne5 {[%clk 00:37:52]} {[%emt 00:01:28]} 26. Rbe1 {[%clk 00:42:06]}
{[%emt 00:01:52]} Qf6 {[%clk 00:37:03]} {[%emt 00:01:20]} 27. Bg5 {[%clk
00:40:46]} {[%emt 00:01:49]} Qg6 {[%clk 00:37:05]} {[%emt 00:00:28]} 28. Kh1
{[%clk 00:37:14]} {[%emt 00:04:02]} Rg8 {[%clk 00:36:40]} {[%emt 00:00:55]} 29.
Nef4 {[%clk 00:36:29]} {[%emt 00:01:15]} Nxf4 {[%clk 00:36:12]} {[%emt
00:00:59]} 30. Bxf4 {[%clk 00:36:34]} {[%emt 00:00:24]} b6 {[%clk 00:36:13]}
{[%emt 00:00:29]} 31. Bb5 {[%clk 00:35:32]} {[%emt 00:01:32]} Bf6 {[%clk
00:33:40]} {[%emt 00:03:03]} 32. Re3 {[%clk 00:30:09]} {[%emt 00:05:52]} Ra7
{[%clk 00:29:23]} {[%emt 00:04:48]} 33. Rg3 {[%clk 00:28:48]} {[%emt 00:01:50]}
Qh5 {[%clk 00:29:49]} {[%emt 00:00:04]} 34. Qd1 {[%clk 00:26:05]} {[%emt
00:03:13]} Qh4 {[%clk 00:26:40]} {[%emt 00:03:40]} 35. Qe1 {[%clk 00:23:03]}
{[%emt 00:03:32]} Rg4 {[%clk 00:24:41]} {[%emt 00:02:29]} 36. Re3 {[%clk
00:20:00]} {[%emt 00:03:32]} Rag7 {[%clk 00:22:42]} {[%emt 00:02:29]} 37. Qxh4
{[%clk 00:19:16]} {[%emt 00:01:14]} Rxh4 {[%clk 00:23:08]} {[%emt 00:00:05]} 38.
b3 {[%clk 00:18:50]} {[%emt 00:00:56]} Rg8 {[%clk 00:22:29]} {[%emt 00:01:09]}
39. Re2 {[%clk 00:16:27]} {[%emt 00:02:52]} Rg7 {[%clk 00:20:48]} {[%emt
00:02:11]} 1/2-1/2

[Event "1er Tournoi de GM du Barreau de Paris"]
[Site "Paris, France"]
[Date "2019.12.20"]
[Round "9.4"]
[White "RAKOTOMAHARO, Fy Antenaina"]
[Black "MOUHAMAD, Joachim"]
[Result "1-0"]
[TimeControl "1h30 + 30s/cp"]
[WhiteTitle "IM"]
[BlackTitle "FM"]
[WhiteElo "2438"]
[BlackElo "2293"]

1. e4 {[%clk 01:30:57]} {[%emt 00:00:02]} e5 {[%clk 01:30:55]} {[%emt
00:00:06]} 2. Nf3 {[%clk 01:31:22]} {[%emt 00:00:05]} Nf6 {[%clk 01:31:19]}
{[%emt 00:00:06]} 3. d4 {[%clk 01:31:28]} {[%emt 00:00:23]} Nxe4 {[%clk
01:31:40]} {[%emt 00:00:10]} 4. Bd3 {[%clk 01:31:54]} {[%emt 00:00:04]} d5
{[%clk 01:32:01]} {[%emt 00:00:09]} 5. Nxe5 {[%clk 01:32:19]} {[%emt 00:00:05]}
Nd7 {[%clk 01:31:40]} {[%emt 00:00:52]} 6. Nc3 {[%clk 01:32:43]} {[%emt
00:00:06]} Nxc3 {[%clk 01:30:13]} {[%emt 00:01:57]} 7. bxc3 {[%clk 01:33:07]}
{[%emt 00:00:05]} Nxe5 {[%clk 01:30:09]} {[%emt 00:00:34]} 8. dxe5 {[%clk
01:33:32]} {[%emt 00:00:05]} Be7 {[%clk 01:29:00]} {[%emt 00:01:38]} 9. O-O
{[%clk 01:33:55]} {[%emt 00:00:07]} O-O {[%clk 01:28:20]} {[%emt 00:01:11]} 10.
f4 {[%clk 01:34:15]} {[%emt 00:00:09]} f5 {[%clk 01:27:27]} {[%emt 00:01:24]}
11. Be3 {[%clk 01:34:27]} {[%emt 00:00:18]} Be6 {[%clk 01:26:55]} {[%emt
00:01:02]} 12. Qd2 {[%clk 01:34:18]} {[%emt 00:00:38]} Qd7 {[%clk 01:24:05]}
{[%emt 00:03:20]} 13. a4 {[%clk 01:34:33]} {[%emt 00:00:15]} Rfd8 {[%clk
01:23:09]} {[%emt 00:01:25]} 14. Qf2 {[%clk 01:23:35]} {[%emt 00:11:27]} b6
{[%clk 01:21:29]} {[%emt 00:02:11]} 15. Rfd1 {[%clk 01:23:51]} {[%emt
00:00:14]} c5 {[%clk 01:20:36]} {[%emt 00:01:24]} 16. Be2 {[%clk 01:24:06]}
{[%emt 00:00:14]} Qc6 {[%clk 01:16:19]} {[%emt 00:04:48]} 17. Bf3 {[%clk
01:21:44]} {[%emt 00:02:53]} Qe8 {[%clk 00:59:37]} {[%emt 00:17:12]} 18. a5
{[%clk 01:07:21]} {[%emt 00:14:53]} Rac8 {[%clk 00:58:59]} {[%emt 00:01:08]} 19.
axb6 {[%clk 01:07:05]} {[%emt 00:00:46]} axb6 {[%clk 00:59:27]} {[%emt
00:00:01]} 20. Ra7 {[%clk 01:07:09]} {[%emt 00:00:26]} Rd7 {[%clk 00:59:04]}
{[%emt 00:00:53]} 21. Rxd7 {[%clk 01:04:26]} {[%emt 00:03:13]} Qxd7 {[%clk
00:59:33]} {[%emt 00:00:02]} 22. Bxd5 {[%clk 01:04:28]} {[%emt 00:00:27]} Qxd5
{[%clk 00:59:50]} {[%emt 00:00:13]} 23. Rxd5 {[%clk 01:04:55]} {[%emt
00:00:03]} Bxd5 {[%clk 01:00:14]} {[%emt 00:00:06]} 24. Qd2 {[%clk 00:31:09]}
{[%emt 00:34:16]} Be6 {[%clk 00:54:04]} {[%emt 00:06:40]} 25. c4 {[%clk
00:28:01]} {[%emt 00:03:39]} Ra8 {[%clk 00:51:27]} {[%emt 00:03:06]} 26. Qd3
{[%clk 00:27:05]} {[%emt 00:01:25]} Ra1+ {[%clk 00:47:56]} {[%emt 00:04:02]} 27.
Kf2 {[%clk 00:27:27]} {[%emt 00:00:07]} Ra4 {[%clk 00:48:18]} {[%emt 00:00:08]}
28. g4 {[%clk 00:21:33]} {[%emt 00:06:25]} g6 {[%clk 00:48:39]} {[%emt
00:00:10]} 29. g5 {[%clk 00:21:56]} {[%emt 00:00:07]} Rxc4 {[%clk 00:48:19]}
{[%emt 00:00:49]} 30. Ke1 {[%clk 00:21:33]} {[%emt 00:00:52]} Kf7 {[%clk
00:43:51]} {[%emt 00:04:58]} 31. Kd2 {[%clk 00:21:02]} {[%emt 00:01:01]} b5
{[%clk 00:37:37]} {[%emt 00:06:44]} 32. h4 {[%clk 00:17:50]} {[%emt 00:03:42]}
b4 {[%clk 00:36:14]} {[%emt 00:01:54]} 33. Qf1 {[%clk 00:12:35]} {[%emt
00:05:44]} Re4 {[%clk 00:25:29]} {[%emt 00:11:15]} 34. Qb5 {[%clk 00:07:14]}
{[%emt 00:05:50]} c4 {[%clk 00:24:48]} {[%emt 00:01:11]} 35. Bc5 {[%clk
00:07:16]} {[%emt 00:00:28]} c3+ {[%clk 00:15:52]} {[%emt 00:09:27]} 36. Kd1
{[%clk 00:07:25]} {[%emt 00:00:21]} Bxc5 {[%clk 00:08:59]} {[%emt 00:07:23]} 37.
Qxc5 {[%clk 00:07:49]} {[%emt 00:00:06]} Bc4 {[%clk 00:04:37]} {[%emt
00:04:52]} 38. Qd6 {[%clk 00:04:46]} {[%emt 00:03:33]} Ke8 {[%clk 00:04:25]}
{[%emt 00:00:42]} 39. Qb8+ {[%clk 00:04:33]} {[%emt 00:00:43]} Kd7 {[%clk
00:04:33]} {[%emt 00:00:22]} 40. h5 {[%clk 00:04:13]} {[%emt 00:00:50]} Be2+
{[%clk 00:03:35]} {[%emt 00:01:28]} 41. Ke1 {[%clk 00:03:11]} {[%emt 00:01:33]}
Bxh5+ {[%clk 00:03:56]} {[%emt 00:00:09]} 42. Kf2 {[%clk 00:02:50]} {[%emt
00:00:50]} Rxf4+ {[%clk 00:04:25]} {[%emt 00:00:02]} 43. Kg3 {[%clk 00:02:48]}
{[%emt 00:00:31]} Rg4+ {[%clk 00:02:13]} {[%emt 00:02:41]} 44. Kh3 {[%clk
00:03:11]} {[%emt 00:00:07]} Re4 {[%clk 00:01:32]} {[%emt 00:01:12]} 45. Qd6+
{[%clk 00:02:31]} {[%emt 00:01:09]} Kc8 {[%clk 00:02:01]} {[%emt 00:00:01]} 46.
e6 {[%clk 00:02:04]} {[%emt 00:00:57]} Bg4+ {[%clk 00:01:54]} {[%emt 00:00:37]}
47. Kh4 {[%clk 00:01:16]} {[%emt 00:01:19]} Bd1+ {[%clk 00:01:42]} {[%emt
00:00:42]} 48. Kg3 {[%clk 00:01:21]} {[%emt 00:00:25]} Bxc2 {[%clk 00:00:57]}
{[%emt 00:01:15]} 49. Qd7+ {[%clk 00:00:35]} {[%emt 00:01:17]} Kb8 {[%clk
00:01:26]} {[%emt 00:00:01]} 50. Qd8+ {[%clk 00:00:35]} {[%emt 00:00:30]} Kb7
{[%clk 00:01:31]} {[%emt 00:00:26]} 51. Qd7+ {[%clk 00:01:01]} {[%emt
00:00:04]} Kb8 {[%clk 00:01:49]} {[%emt 00:00:11]} 52. e7 {[%clk 00:00:49]}
{[%emt 00:00:42]} Ba4 {[%clk 00:00:54]} {[%emt 00:01:25]} 53. Qxa4 {[%clk
00:00:57]} {[%emt 00:00:22]} Rxe7 {[%clk 00:01:21]} {[%emt 00:00:02]} 54. Qxb4+
{[%clk 00:01:19]} {[%emt 00:00:08]} Rb7 {[%clk 00:01:45]} {[%emt 00:00:06]} 55.
Qxc3 {[%clk 00:01:28]} {[%emt 00:00:21]} Rc7 {[%clk 00:01:32]} {[%emt
00:00:44]} 56. Qb4+ {[%clk 00:01:21]} {[%emt 00:00:36]} Kc8 {[%clk 00:01:06]}
{[%emt 00:00:56]} 57. Kf4 {[%clk 00:01:35]} {[%emt 00:00:15]} Kd7 {[%clk
00:01:05]} {[%emt 00:00:32]} 58. Ke5 {[%clk 00:01:36]} {[%emt 00:00:29]} Kc8
{[%clk 00:00:35]} {[%emt 00:01:01]} 59. Qb6 {[%clk 00:01:08]} {[%emt 00:00:58]}
Rb7 {[%clk 00:00:44]} {[%emt 00:00:21]} 60. Qc6+ {[%clk 00:01:14]} {[%emt
00:00:24]} Rc7 {[%clk 00:01:12]} {[%emt 00:00:02]} 61. Qe8+ {[%clk 00:01:11]}
{[%emt 00:00:33]} Kb7 {[%clk 00:01:25]} {[%emt 00:00:17]} 62. Kd6 {[%clk
00:01:36]} {[%emt 00:00:04]} Rg7 {[%clk 00:01:10]} {[%emt 00:00:45]} 63. Qb5+
{[%clk 00:01:35]} {[%emt 00:00:32]} Kc8 {[%clk 00:00:38]} {[%emt 00:01:01]} 64.
Qc4+ {[%clk 00:01:36]} {[%emt 00:00:29]} Kb8 {[%clk 00:00:54]} {[%emt
00:00:14]} 65. Qb3+ {[%clk 00:01:17]} {[%emt 00:00:50]} Rb7 {[%clk 00:01:14]}
{[%emt 00:00:09]} 66. Qg8+ {[%clk 00:01:40]} {[%emt 00:00:07]} Ka7 {[%clk
00:01:42]} {[%emt 00:00:02]} 67. Kc6 {[%clk 00:01:54]} {[%emt 00:00:15]} Rb6+
{[%clk 00:02:03]} {[%emt 00:00:10]} 68. Kc5 {[%clk 00:02:20]} {[%emt 00:00:04]}
Rb7 {[%clk 00:02:25]} {[%emt 00:00:08]} 69. Qa2+ {[%clk 00:01:43]} {[%emt
00:01:06]} Kb8 {[%clk 00:02:49]} {[%emt 00:00:06]} 70. Qa5 {[%clk 00:01:33]}
{[%emt 00:00:40]} Rc7+ {[%clk 00:00:55]} {[%emt 00:02:25]} 71. Kb6 {[%clk
00:01:50]} {[%emt 00:00:12]} Re7 {[%clk 00:00:57]} {[%emt 00:00:27]} 72. Kc6
{[%clk 00:01:31]} {[%emt 00:00:49]} Rb7 {[%clk 00:00:33]} {[%emt 00:00:55]} 73.
Qd8+ {[%clk 00:00:40]} {[%emt 00:01:21]} Ka7 {[%clk 00:01:02]} 74. Kc5 {[%clk
00:00:40]} {[%emt 00:00:30]} Rf7 {[%clk 00:00:49]} {[%emt 00:00:42]} 75. Qa5+
{[%clk 00:00:36]} {[%emt 00:00:34]} Kb7 {[%clk 00:00:40]} {[%emt 00:00:39]} 76.
Qb6+ {[%clk 00:00:53]} {[%emt 00:00:14]} Kc8 {[%clk 00:00:37]} {[%emt
00:00:34]} 77. Qe6+ {[%clk 00:01:17]} {[%emt 00:00:05]} 1-0